bitfinex/quotes_SOLUSD_20250209
["timestamp","ask_amount","ask_price","bid_price","bid_amount"]
[1739124505261,0.063,199.57,199.56,26.56704208]
[1739124510069,0.063,199.63,199.6,20.0]
[1739124510280,0.063,199.63,199.62,9.64749355]
[1739124510976,0.063,199.63,199.62,10.39861942]
[1739124511385,0.063,199.63,199.62,13.90521942]
[1739124518890,0.063,199.66,199.65,20.0]
[1739124519088,0.063,199.66,199.65,30.39861309]
[1739124520296,0.063,199.66,199.65,33.90471309]
[1739124520593,0.063,199.66,199.65,48.31656162]
[1739124520979,0.063,199.66,199.65,47.31656162]
[1739124521494,0.063,199.66,199.65,48.31656162]
[1739124530309,0.063,199.68,199.66,1.0]
[1739124530607,0.063,199.68,199.67,27.53023394]
[1739124531601,0.063,199.68,199.67,31.03593394]
[1739124536110,0.063,199.68,199.67,32.31428791]
[1739124537500,0.063,199.68,199.65,9.64749355]
[1739124537704,16.33309355,199.68,199.63,0.03]
[1739124538002,9.64749355,199.67,199.63,0.03]
[1739124538202,16.33309355,199.68,199.63,0.03]
[1739124539408,9.64749355,199.67,199.63,0.03]
[1739124539713,11.28849355,199.64,199.63,0.03]
[1739124541410,14.79479355,199.64,199.63,0.03]
[1739124544311,11.28849355,199.64,199.63,0.03]
[1739124546516,14.79479355,199.64,199.63,0.03]
[1739124548791,28.20664208,199.64,199.63,0.03]
[1739124550104,14.79479355,199.64,199.63,0.03]
[1739124551516,1.641,199.64,199.63,0.03]
[1739124552915,0.063,199.66,199.63,0.03]
[1739124554354,9.64749355,199.64,199.63,0.03]
[1739124555327,13.15379355,199.64,199.63,0.03]
[1739124556531,3.5063,199.64,199.63,0.03]
[1739124557597,9.64749355,199.65,199.63,0.03]
[1739124557803,0.063,199.66,199.63,0.03]
[1739124559011,0.063,199.66,199.63,9.67749355]
[1739124559350,0.063,199.66,199.64,9.64749355]
[1739124559726,0.063,199.66,199.65,9.64749355]
[1739124561023,0.063,199.66,199.65,13.15359355]
[1739124561436,0.063,199.66,199.65,9.64749355]
[1739124561819,0.063,199.66,199.65,13.15359355]
[1739124563840,0.063,199.66,199.65,15.05098897]
[1739124566050,0.063,199.66,199.65,18.55708897]
[1739124569044,0.063,199.66,199.65,15.05098897]
[1739124569543,0.063,199.66,199.65,18.55708897]
[1739124579839,0.063,199.66,199.65,18.58708897]
[1739124582359,0.063,199.66,199.65,15.08098897]
[1739124582546,0.063,199.66,199.65,0.03]
[1739124584387,15.11398897,199.66,199.65,0.03]
[1739124584668,16.61918897,199.66,199.65,0.03]
[1739124585045,1.5682,199.66,199.65,0.03]
[1739124589168,0.063,199.66,199.65,0.03]
[1739124592347,0.063,199.66,199.65,9.66817725]
[1739124594274,0.063,199.66,199.65,13.17427725]
[1739124598364,0.063,199.66,199.65,13.92530014]
[1739124600180,0.063,199.66,199.65,27.33714867]
[1739124600361,0.063,199.68,199.66,13.41184853]
[1739124600678,0.063,199.68,199.67,23.80093748]
[1739124601181,0.063,199.68,199.67,62.35364648]
[1739124601679,0.063,199.68,199.67,65.85934648]
[1739124602062,0.063,199.69,199.68,1.0]
[1739124602261,0.063,199.69,199.68,72.91088625]
[1739124602462,0.063,199.69,199.68,71.91088625]
[1739124602662,0.063,199.69,199.68,72.91088625]
[1739124603386,0.063,199.69,199.68,76.41648625]
[1739124603682,0.063,199.69,199.68,36.86377725]
[1739124603864,0.063,199.69,199.68,9.63817725]
[1739124604062,0.063,199.69,199.66,3.5058]
[1739124604063,0.063,199.69,199.67,9.63817725]
[1739124604266,0.063,199.69,199.65,0.03]
[1739124604668,0.063,199.69,199.68,0.03]
[1739124606899,90.70117725,199.69,199.68,0.03]
[1739124609690,96.12189632,199.69,199.68,0.03]
[1739124610481,99.62729632,199.69,199.68,0.03]
[1739124612173,18.62729632,199.69,199.68,0.03]
[1739124613068,33.03914485,199.69,199.68,0.03]
[1739124613267,33.03914485,199.69,199.65,0.03]
[1739124613268,19.78044853,199.66,199.65,0.03]
[1739124613494,34.83934485,199.66,199.65,0.03]
[1739124613692,36.83934485,199.66,199.65,0.03]
[1739124614597,39.34524485,199.66,199.65,0.03]
[1739124616590,38.34524485,199.66,199.65,0.03]
[1739124620996,38.31001205,199.66,199.65,0.03]
[1739124625705,40.31001205,199.66,199.65,0.03]
[1739124626397,15.41184853,199.64,199.63,0.03]
[1739124626592,30.47074485,199.64,199.63,0.03]
[1739124627313,35.251855,199.64,199.63,0.03]
[1739124627609,34.251855,199.64,199.63,0.03]
[1739124627781,33.251855,199.64,199.63,0.03]
[1739124628101,31.97704485,199.64,199.63,0.03]
[1739124629608,26.56238421,199.64,199.63,0.03]
[1739124630125,13.15053568,199.64,199.63,0.03]
[1739124632607,9.64423568,199.66,199.63,0.03]
[1739124632991,13.14993568,199.67,199.63,0.03]
[1739124634101,9.64423568,199.66,199.63,0.03]
[1739124635702,13.15033568,199.66,199.63,0.03]
[1739124636416,3.5061,199.66,199.63,0.03]
[1739124636912,90.70723568,199.68,199.63,0.03]
[1739124637216,94.21293568,199.68,199.63,0.03]
[1739124637895,9.64423568,199.67,199.63,0.03]
[1739124638322,9.64423568,199.66,199.63,0.03]
[1739124638919,3.5061,199.65,199.63,0.03]
[1739124642420,3.5059,199.66,199.63,0.03]
[1739124642814,13.15013568,199.66,199.63,0.03]
[1739124644502,9.64423568,199.64,199.63,0.03]
[1739124646094,26.56238421,199.64,199.63,0.03]
[1739124646321,27.56238421,199.64,199.63,0.03]
[1739124646528,27.56238421,199.64,199.57,0.03]
[1739124646529,14.41184853,199.63,199.57,0.03]
[1739124646700,9.64423568,199.58,199.57,0.03]
[1739124647221,23.05608421,199.58,199.57,0.03]
[1739124647816,9.64423568,199.58,199.57,0.03]
[1739124648019,9.64423568,199.58,199.52,0.02476719]
[1739124648201,13.15173568,199.57,199.52,0.02476719]
[1739124649316,9.64423568,199.56,199.52,0.02476719]
[1739124649646,3.5075,199.57,199.52,0.02476719]
[1739124649647,15.07606761,199.55,199.52,0.02476719]
[1739124651728,3.508,199.54,199.52,0.02476719]
[1739124653722,96.07606761,199.53,199.52,0.02476719]
[1739124655604,99.58426761,199.53,199.52,0.02476719]
[1739124655812,81.0,199.53,199.52,0.02476719]
[1739124656407,18.58366761,199.57,199.52,0.02476719]
[1739124656618,3.5076,199.57,199.52,15.1008348]
[1739124657021,3.5076,199.57,199.52,0.02476719]
[1739124657712,15.07606761,199.55,199.52,0.02476719]
[1739124657909,15.07606761,199.53,199.52,0.02476719]
[1739124658227,15.07606761,199.54,199.52,0.02476719]
[1739124659115,3.5082,199.53,199.52,0.02476719]
[1739124659817,18.58426761,199.53,199.52,0.02476719]
[1739124660531,32.99611614,199.53,199.5,0.02006719]
[1739124660711,28.48791614,199.51,199.5,0.02006719]
[1739124661616,32.99641614,199.51,199.5,0.02006719]
[1739124662124,49.07248375,199.51,199.5,6.719e-05]
[1739124663330,1.0,199.49,199.48,6.719e-05]
[1739124663533,19.58496761,199.49,199.48,6.719e-05]
[1739124663833,31.99681614,199.49,199.48,6.719e-05]
[1739124664044,18.58496761,199.49,199.48,6.719e-05]
[1739124665521,15.07606761,199.5,199.48,6.719e-05]
[1739124665834,18.58436761,199.53,199.48,6.719e-05]
[1739124666031,15.07606761,199.53,199.48,6.719e-05]
[1739124666335,15.07606761,199.52,199.48,6.719e-05]
[1739124666633,15.07606761,199.49,199.48,6.719e-05]
[1739124667318,18.58496761,199.49,199.48,6.719e-05]
[1739124668050,15.07606761,199.49,199.48,6.719e-05]
[1739124670120,18.58496761,199.49,199.48,6.719e-05]
[1739124671036,94.41184853,199.53,199.48,6.719e-05]
[1739124671037,15.07606761,199.5,199.48,6.719e-05]
[1739124671243,15.07606761,199.52,199.48,6.719e-05]
[1739124671418,99.58446761,199.53,199.48,6.719e-05]
[1739124671738,96.07606761,199.53,199.48,6.719e-05]
[1739124673639,15.07606761,199.52,199.48,6.719e-05]
[1739124673843,15.07606761,199.5,199.48,6.719e-05]
[1739124675038,15.07606761,199.51,199.48,6.719e-05]
[1739124675223,84.5082,199.53,199.48,6.719e-05]
[1739124675224,15.07606761,199.52,199.48,6.719e-05]
[1739124677242,18.58446761,199.52,199.48,6.719e-05]
[1739124677434,15.07606761,199.51,199.48,6.719e-05]
[1739124678346,15.07606761,199.5,199.48,6.719e-05]
[1739124678734,18.58486761,199.5,199.48,6.719e-05]
[1739124679030,3.5088,199.5,199.48,6.719e-05]
[1739124680548,3.5079,199.55,199.49,15.07606761]
[1739124680743,3.5077,199.56,199.5,15.07606761]
[1739124681545,18.58376761,199.56,199.49,15.07606761]
[1739124682550,0.063,199.57,199.51,15.07606761]
[1739124683546,0.063,199.57,199.52,1.563]
[1739124683737,0.063,199.57,199.55,15.07606761]
[1739124684235,0.063,199.57,199.56,15.07606761]
[1739124684633,0.063,199.57,199.55,15.07606761]
[1739124687145,0.063,199.57,199.54,15.07606761]
[1739124688444,0.063,199.57,199.52,1.563]
[1739124688445,0.063,199.57,199.53,15.07606761]
[1739124688643,0.063,199.57,199.52,16.63906761]
[1739124688848,15.13906761,199.57,199.5,15.07606761]
[1739124689144,15.13906761,199.57,199.49,21.50886761]
[1739124689145,15.07606761,199.56,199.49,21.50886761]
[1739124690434,3.5077,199.56,199.5,15.07606761]
[1739124690636,3.5077,199.56,199.51,15.07606761]
[1739124691440,3.5705,199.57,199.51,15.07606761]
[1739124693739,18.64656761,199.57,199.5,15.07606761]
[1739124694142,18.64656761,199.57,199.49,6.4328]
[1739124694345,15.07606761,199.55,199.48,15.0761348]
[1739124694748,15.07606761,199.54,199.48,6.719e-05]
[1739124695047,15.07606761,199.51,199.48,6.719e-05]
[1739124695424,15.07606761,199.53,199.48,6.719e-05]
[1739124695625,81.0,199.54,199.48,15.0761348]
[1739124695933,81.0,199.54,199.5,15.07606761]
[1739124696848,84.508,199.54,199.49,15.07606761]
[1739124697040,84.508,199.54,199.48,15.0761348]
[1739124698358,3.508,199.54,199.48,15.0761348]
[1739124698658,18.58386761,199.56,199.49,15.07606761]
[1739124698864,3.5705,199.57,199.52,15.07606761]
[1739124699964,0.063,199.57,199.52,15.07606761]
[1739124700539,0.063,199.57,199.51,15.07606761]
[1739124700745,15.13906761,199.57,199.5,15.07606761]
[1739124702360,3.5077,199.56,199.5,15.07606761]
[1739124703243,3.5077,199.56,199.51,15.07606761]
[1739124703462,3.5705,199.57,199.51,15.07606761]
[1739124705942,0.063,199.57,199.53,15.07606761]
[1739124706460,0.063,199.57,199.55,15.07606761]
[1739124707964,0.063,199.57,199.56,15.07606761]
[1739124711161,0.063,199.57,199.56,18.58376761]
[1739124711872,0.063,199.57,199.56,15.07606761]
[1739124715255,0.063,199.57,199.54,18.79606761]
[1739124715648,0.063,199.57,199.54,13.36372759]
[1739124716170,0.063,199.57,199.52,9.64372759]
[1739124716365,0.063,199.57,199.51,9.64372759]
[1739124716882,9.64372759,199.56,199.49,9.64372759]
[1739124717053,9.64372759,199.54,199.48,6.719e-05]
[1739124717370,3.5082,199.54,199.48,9.64379478]
[1739124717566,3.5082,199.54,199.48,6.719e-05]
[1739124717883,3.5082,199.54,199.48,15.07768156]
[1739124718673,3.5082,199.54,199.48,6.719e-05]
[1739124718866,18.58581437,199.54,199.48,6.719e-05]
[1739124719061,15.07761437,199.53,199.48,6.719e-05]
[1739124719876,15.07761437,199.52,199.48,6.719e-05]
[1739124720254,18.58611437,199.52,199.48,6.719e-05]
[1739124721379,3.5085,199.52,199.48,6.719e-05]
[1739124721982,20.18391437,199.54,199.48,6.719e-05]
[1739124722162,5.1063,199.54,199.48,15.07768156]
[1739124722358,1.5982,199.54,199.48,15.07768156]
[1739124722557,5.1062,199.54,199.48,6.719e-05]
[1739124722754,1.5982,199.54,199.48,6.719e-05]
[1739124722978,21.43351437,199.55,199.48,15.07768156]
[1739124722979,15.07761437,199.55,199.48,15.07768156]
[1739124723165,15.07761437,199.56,199.49,15.07761437]
[1739124723678,0.063,199.57,199.51,15.07761437]
[1739124724778,0.063,199.57,199.53,15.07761437]
[1739124726883,0.063,199.57,199.52,15.07761437]
[1739124727062,15.07761437,199.54,199.48,6.719e-05]
[1739124728373,15.07761437,199.55,199.48,18.58678156]
[1739124729483,15.14061437,199.57,199.5,15.07761437]
[1739124729664,0.063,199.57,199.51,15.07761437]
[1739124729863,0.063,199.57,199.52,15.07761437]
[1739124730264,0.063,199.57,199.53,15.07761437]
[1739124730691,0.063,199.57,199.54,18.58561437]
[1739124730870,0.063,199.57,199.56,15.07761437]
[1739124731983,0.063,199.57,199.56,18.58531437]
[1739124733089,0.063,199.57,199.56,31.9971629]
[1739124734682,0.063,199.57,199.56,15.07761437]
[1739124735270,0.063,199.57,199.56,18.58531437]
[1739124740589,0.063,199.57,199.56,31.9971629]
[1739124740793,0.063,199.57,199.56,32.74852584]
[1739124741302,0.063,199.57,199.56,18.58531437]
[1739124746019,0.063,199.57,199.55,15.07761437]
[1739124746219,0.063,199.57,199.52,15.07761437]
[1739124746524,15.14061437,199.57,199.5,15.07761437]
[1739124747295,0.063,199.57,199.52,15.07761437]
[1739124748890,0.063,199.57,199.54,15.07761437]
[1739124751313,0.063,199.57,199.53,15.07761437]
[1739124754621,0.063,199.57,199.54,15.07761437]
[1739124758230,0.063,199.57,199.55,15.07761437]
[1739124759600,0.063,199.57,199.55,9.643532]
[1739124760019,0.063,199.57,199.56,9.643532]
[1739124761817,0.063,199.57,199.56,13.151232]
[1739124763836,0.063,199.57,199.56,26.56308053]
[1739124765750,0.063,199.57,199.56,31.97785459]
[1739124771253,0.063,199.57,199.56,18.56600606]
[1739124772447,0.063,199.57,199.56,31.97785459]
[1739124772821,0.063,199.57,199.56,18.56600606]
[1739124773448,0.063,199.57,199.56,15.05830606]
[1739124774245,0.063,199.57,199.56,18.56600606]
[1739124775622,0.063,199.57,199.56,31.97785459]
[1739124776559,0.063,199.57,199.56,32.72923004]
[1739124780860,0.063,199.57,199.56,33.72923004]
[1739124781167,0.063,199.68,199.6,20.0]
[1739124781342,0.063,199.68,199.65,15.05830606]
[1739124784640,0.063,199.68,199.64,15.05830606]
[1739124784844,0.063,199.68,199.63,15.05830606]
[1739124785043,0.02844411,199.68,199.63,15.05830606]
[1739124785664,0.02844411,199.68,199.63,9.63523068]
[1739124786973,0.02844411,199.68,199.64,9.63523068]
[1739124787858,0.02844411,199.68,199.63,9.63523068]
[1739124788271,0.02844411,199.68,199.64,9.63523068]
[1739124789774,0.02844411,199.68,199.65,9.63523068]
[1739124790566,0.02844411,199.68,199.66,9.63523068]
[1739124790874,0.02844411,199.68,199.67,9.63523068]
[1739124792073,0.02844411,199.68,199.67,13.14093068]
[1739124795161,0.02844411,199.68,199.67,26.55277921]
[1739124795360,0.02844411,199.68,199.67,27.30371636]
[1739124796969,0.02844411,199.68,199.67,26.55277921]
[1739124797165,0.02844411,199.68,199.67,9.63523068]
[1739124799058,0.02844411,199.68,199.66,9.63523068]
[1739124800267,0.02844411,199.68,199.67,9.63523068]
[1739124801376,0.02844411,199.68,199.67,13.14093068]
[1739124802379,0.02844411,199.68,199.67,13.17093068]
[1739124805176,0.02844411,199.68,199.67,13.92191543]
[1739124806875,0.02844411,199.68,199.67,27.33376396]
[1739124811103,0.02844411,199.68,199.67,13.17093068]
[1739124811272,0.02844411,199.68,199.67,9.66523068]
[1739124811592,0.02844411,199.68,199.67,13.17093068]
[1739124812494,0.02844411,199.68,199.67,13.92193593]
[1739124812877,0.02844411,199.68,199.67,13.17093068]
[1739124815805,0.02844411,199.68,199.67,27.58277921]
[1739124820097,0.02844411,199.68,199.67,31.30277921]
[1739124821181,0.02844411,199.68,199.67,30.30277921]
[1739124825682,0.02844411,199.68,199.67,31.05370471]
[1739124826898,0.02844411,199.68,199.67,30.30277921]
[1739124829611,0.02844411,199.68,199.67,69.84370193]
[1739124831691,0.02844411,199.68,199.67,30.30277921]
[1739124832191,0.02844411,199.68,199.67,31.30277921]
[1739124832814,0.02844411,199.68,199.67,30.30277921]
[1739124833511,0.02844411,199.68,199.67,31.30277921]
[1739124837198,0.02844411,199.68,199.67,32.55653541]
[1739124841491,0.063,199.69,199.68,14.41184853]
[1739124841695,0.063,199.69,199.68,63.33882698]
[1739124842807,0.063,199.7,199.69,16.91724853]
[1739124843015,0.063,199.7,199.69,65.09340193]
[1739124848024,0.063,199.7,199.69,26.55247921]
[1739124853732,0.063,199.7,199.69,13.14063068]
[1739124859728,0.063,199.7,199.69,26.55247921]
[1739124860032,0.063,199.7,199.69,26.58247921]
[1739124870027,0.063,199.7,199.69,13.17063068]
[1739124872115,0.063,199.7,199.69,0.03]
[1739124872520,81.063,199.7,199.69,0.03]
[1739124873636,81.063,199.7,199.69,9.66523068]
[1739124874146,81.063,199.7,199.69,0.03]
[1739124890453,90.69823068,199.7,199.69,0.03]
[1739124890661,9.69823068,199.7,199.69,0.03]
[1739124892777,0.063,199.7,199.69,0.03]
[1739124901064,9.69823068,199.7,199.69,0.03]
[1739124901368,16.22153068,199.7,199.69,0.03]
[1739124901754,19.72673068,199.7,199.69,0.03]
[1739124902160,20.72673068,199.7,199.69,0.03]
[1739124902481,14.41184853,199.68,199.67,0.03]
[1739124902676,24.04707921,199.68,199.67,0.03]
[1739124903556,23.04707921,199.68,199.67,0.03]
[1739124904170,26.55267921,199.68,199.67,0.03]
[1739124906670,9.63523068,199.68,199.67,0.03]
[1739124906894,5.1393,199.69,199.67,0.03]
[1739124906895,11.26913068,199.69,199.67,0.03]
[1739124907375,24.04707921,199.68,199.67,0.03]
[1739124907552,13.41184853,199.65,199.54,3.508]
[1739124907877,9.63523068,199.59,199.54,3.508]
[1739124908054,9.63523068,199.58,199.54,3.508]
[1739124908255,9.63523068,199.58,199.53,3.5082]
[1739124908767,9.63523068,199.58,199.52,3.5084]
[1739124909173,9.63523068,199.58,199.51,1.5191]
[1739124909366,9.63523068,199.55,199.49,0.03]
[1739124909565,9.63523068,199.54,199.49,0.03]
[1739124910269,9.63523068,199.55,199.49,0.03]
[1739124910658,9.63523068,199.55,199.49,3.5389]
[1739124911060,9.63523068,199.56,199.49,13.17413068]
[1739124913973,9.63523068,199.55,199.49,3.5389]
[1739124916278,9.63523068,199.54,199.49,3.5389]
[1739124916481,9.63523068,199.51,199.49,0.03]
[1739124916657,81.0,199.5,199.49,0.03]
[1739124923282,90.63523068,199.5,199.49,0.03]
[1739124925772,9.63523068,199.5,199.49,0.03]
[1739124927992,13.41184853,199.49,199.48,6.719e-05]
[1739124928286,9.63523068,199.49,199.48,6.719e-05]
[1739124930667,13.14413068,199.49,199.48,6.719e-05]
[1739124933995,26.55597921,199.49,199.48,6.719e-05]
[1739124934788,28.55597921,199.49,199.48,6.719e-05]
[1739124935787,2.0,199.46,199.45,0.03]
[1739124935979,2.0,199.46,199.44,0.03]
[1739124935980,2.0,199.45,199.44,0.03]
[1739124936179,28.55667921,199.45,199.44,0.03]
[1739124936679,15.41184853,199.44,199.36,0.03]
[1739124936872,9.63523068,199.37,199.36,0.03]
[1739124937476,9.63523068,199.38,199.36,0.03]
[1739124938073,9.63523068,199.37,199.36,0.03]
[1739124939285,9.63523068,199.38,199.36,0.03]
[1739124940298,9.63523068,199.37,199.36,0.03]
[1739124941094,9.63523068,199.39,199.36,0.03]
[1739124941798,81.0,199.41,199.36,0.03]
[1739124941799,9.63523068,199.4,199.36,0.03]
[1739124941992,81.0,199.41,199.36,9.66523068]
[1739124942700,81.0,199.41,199.36,0.03]
[1739124942701,9.63523068,199.4,199.36,0.03]
[1739124943287,9.6010272,199.4,199.36,3.5412]
[1739124943685,90.63523068,199.41,199.36,3.5412]
[1739124945713,81.0,199.41,199.37,9.63523068]
[1739124946002,81.0,199.41,199.38,9.63523068]
[1739124947774,81.0,199.41,199.37,13.14613068]
[1739124947982,81.0,199.41,199.36,0.03]
[1739124948193,90.63523068,199.41,199.36,0.03]
[1739124949176,9.63523068,199.4,199.36,0.03]
[1739124950500,9.63523068,199.39,199.36,0.03]
[1739124951915,9.63523068,199.4,199.36,0.03]
[1739124962414,81.063,199.41,199.36,9.66523068]
[1739124962618,81.063,199.41,199.39,9.63523068]
[1739124963000,81.063,199.41,199.37,1.6266]
[1739124963001,81.063,199.41,199.38,9.63523068]
[1739124963209,90.69823068,199.41,199.36,0.03]
[1739124963427,9.63523068,199.4,199.36,0.03]
[1739124963934,9.63523068,199.39,199.36,0.03]
[1739124964626,9.63523068,199.4,199.36,0.03]
[1739124965124,9.63523068,199.4,199.34,13.14252719]
[1739124965823,9.63523068,199.4,199.36,0.03]
[1739124966210,9.69823068,199.4,199.36,0.03]
[1739124967632,9.63523068,199.39,199.36,0.03]
[1739124967825,1.0,199.35,199.32,0.03]
[1739124968027,23.04707921,199.33,199.32,0.03]
[1739124968333,1.0,199.31,199.29,0.03]
[1739124968637,13.41184853,199.3,199.29,0.03]
[1739124969018,9.63523068,199.3,199.29,0.03]
[1739124971712,9.63523068,199.31,199.29,0.03]
[1739124973241,90.63523068,199.35,199.29,9.66523068]
[1739124973739,90.63523068,199.35,199.3,3.5122]
[1739124974921,9.63523068,199.34,199.3,3.5122]
[1739124975120,9.63523068,199.33,199.3,3.5122]
[1739124976419,9.63523068,199.33,199.29,0.03]
[1739124977652,23.04707921,199.34,199.29,0.03]
[1739124977939,23.04707921,199.34,199.3,0.03]
[1739124979337,9.63523068,199.33,199.3,0.03]
[1739124982146,13.41184853,199.34,199.3,0.03]
[1739124982147,9.63523068,199.32,199.3,0.03]
[1739124983928,81.0,199.35,199.3,0.03]
[1739124985745,90.63523068,199.35,199.3,3.5422]
[1739124986058,81.0,199.35,199.3,13.17743068]
[1739124986264,81.0,199.35,199.32,9.63523068]
[1739124986940,81.0,199.35,199.33,9.63523068]
[1739124987142,81.0,199.35,199.34,9.63523068]
[1739124987931,0.063,199.4,199.35,3.5114]
[1739124988131,0.063,199.4,199.35,13.14663068]
[1739124990150,0.063,199.4,199.35,3.5114]
[1739124990455,9.63523068,199.38,199.35,3.5114]
[1739124991053,9.63523068,199.36,199.35,3.5114]
[1739124991434,9.63523068,199.37,199.31,21.92753068]
[1739124991737,90.69823068,199.4,199.33,9.63523068]
[1739124991941,81.063,199.4,199.35,9.63523068]
[1739124993133,9.63523068,199.36,199.31,3.5121]
[1739124993463,9.63523068,199.35,199.3,0.03]
[1739124993656,9.63523068,199.36,199.3,0.03]
[1739124994474,9.63523068,199.37,199.3,9.66523068]
[1739124995369,9.63523068,199.36,199.3,0.03]
[1739124996445,9.63523068,199.37,199.3,9.66523068]
[1739124997073,9.63523068,199.37,199.31,3.5121]
[1739125000365,9.63523068,199.37,199.3,3.5422]
[1739125001163,9.63523068,199.37,199.3,13.17743068]
[1739125004485,9.63523068,199.36,199.3,3.5422]
[1739125006371,9.63523068,199.34,199.3,3.5422]
[1739125008377,9.63523068,199.34,199.3,0.03]
[1739125009896,9.63523068,199.35,199.3,0.03]
[1739125010272,13.41184853,199.35,199.3,0.03]
[1739125011205,90.63523068,199.36,199.3,0.03]
[1739125011390,9.63523068,199.34,199.3,0.03]
[1739125012692,9.63523068,199.35,199.3,0.03]
[1739125014478,90.69823068,199.36,199.3,0.03]
[1739125016112,81.0,199.35,199.3,0.03]
[1739125016400,81.0,199.35,199.31,9.63523068]
[1739125017402,81.0,199.35,199.32,3.5119]
[1739125017578,81.0,199.35,199.32,13.14713068]
[1739125019300,81.0,199.35,199.32,3.5119]
[1739125020406,81.0,199.35,199.32,13.14713068]
[1739125020784,0.063,199.36,199.34,9.63523068]
[1739125021000,0.063,199.36,199.35,9.63523068]
[1739125022502,0.063,199.36,199.35,13.14663068]
[1739125027021,0.0001,199.36,199.35,13.14663068]
[1739125027193,0.063,199.4,199.35,21.92513068]
[1739125027498,0.063,199.4,199.39,9.63523068]
[1739125028692,0.063,199.4,199.39,13.14593068]
[1739125032609,0.063,199.4,199.39,51.6868534]
[1739125032610,0.0001,199.4,199.39,51.6868534]
[1739125033900,0.0001,199.41,199.39,51.6868534]
[1739125034099,0.0001,199.41,199.4,68.1761534]
[1739125034795,0.063,199.49,199.4,68.1761534]
[1739125034993,0.063,199.49,199.47,9.63523068]
[1739125035191,0.063,199.49,199.48,9.63523068]
[1739125036117,0.063,199.49,199.47,9.63523068]
[1739125036391,9.69823068,199.49,199.43,9.63523068]
[1739125036603,9.69823068,199.49,199.42,9.63523068]
[1739125037228,9.69823068,199.49,199.43,3.51]
[1739125040527,9.69823068,199.49,199.43,9.63523068]
[1739125040920,9.63523068,199.47,199.41,0.03]
[1739125041620,9.63523068,199.47,199.41,9.66523068]
[1739125042116,9.63523068,199.47,199.41,13.17543068]
[1739125042700,9.63523068,199.48,199.41,13.17543068]
[1739125042908,23.04707921,199.48,199.41,13.17543068]
[1739125043404,90.69823068,199.49,199.42,9.63523068]
[1739125044523,90.69823068,199.49,199.43,9.63523068]
[1739125045602,81.063,199.49,199.43,9.63523068]
[1739125045821,0.063,199.49,199.48,9.63523068]
[1739125046514,0.063,199.49,199.47,9.63523068]
[1739125046719,0.063,199.49,199.44,9.63523068]
[1739125048724,0.063,199.49,199.45,3.5096]
[1739125049209,9.69823068,199.49,199.42,9.63523068]
[1739125049414,9.63523068,199.48,199.42,3.51]
[1739125049724,9.63523068,199.47,199.41,13.17543068]
[1739125050824,0.063,199.49,199.44,9.63523068]
[1739125051014,0.063,199.49,199.45,9.63523068]
[1739125051826,0.063,199.49,199.46,9.63523068]
[1739125052017,0.063,199.49,199.48,9.63523068]
[1739125052928,0.063,199.49,199.48,13.14433068]
[1739125058324,0.063,199.49,199.43,9.63523068]
[1739125059329,0.063,199.49,199.44,9.63523068]
[1739125061232,0.063,199.49,199.45,9.63523068]
[1739125061426,0.063,199.49,199.43,9.63523068]
[1739125061741,9.63523068,199.48,199.42,13.14523068]
[1739125062121,0.063,199.49,199.43,9.63523068]
[1739125062322,0.063,199.49,199.44,9.63523068]
[1739125063921,0.063,199.49,199.43,13.14513068]
[1739125065753,0.063,199.49,199.44,9.63523068]
[1739125066244,0.063,199.49,199.43,9.63523068]
[1739125069448,0.063,199.49,199.43,13.14513068]
[1739125070331,0.063,199.49,199.44,9.63523068]
[1739125071249,0.063,199.49,199.48,9.63523068]
[1739125071752,0.063,199.49,199.47,9.63523068]
[1739125072435,0.063,199.49,199.47,13.14443068]
[1739125072950,0.063,199.49,199.48,9.63523068]
[1739125074965,0.063,199.49,199.48,13.14433068]
[1739125078461,0.063,199.49,199.48,14.3765989]